bitfinex-derivatives/quotes_BTCF0:USTF0_20250822
["timestamp","ask_amount","ask_price","bid_price","bid_amount"]
[1755849430194,0.84234488,113220.0,113210.0,0.50497]
[1755849430495,0.84334488,113220.0,113210.0,0.50497]
[1755849431005,0.8607997,113220.0,113210.0,0.50497]
[1755849434003,0.8607997,113220.0,113210.0,0.14417]
[1755849434198,0.8607997,113220.0,113210.0,0.50497]
[1755849435103,0.8607997,113220.0,113210.0,0.48015]
[1755849435306,0.8607997,113220.0,113210.0,0.50497]
[1755849436711,0.30406482,113220.0,113210.0,0.50497]
[1755849436900,0.8607997,113220.0,113210.0,0.50497]
[1755849437101,1.6975597,113220.0,113210.0,0.47099]
[1755849437501,1.6975597,113220.0,113210.0,0.5051]
[1755849438001,1.6975597,113220.0,113210.0,0.44617]
[1755849438207,1.97592714,113220.0,113210.0,0.41536]
[1755849439107,1.99523703,113220.0,113210.0,0.41536]
[1755849444008,1.99523703,113220.0,113210.0,0.3608]
[1755849444707,1.99523703,113220.0,113210.0,0.38567]
[1755849445008,1.99523703,113220.0,113200.0,0.37572]
[1755849445198,0.59192488,113210.0,113200.0,0.47475]
[1755849445407,0.59192488,113210.0,113200.0,0.44339]
[1755849445408,0.61126298,113210.0,113200.0,0.44339]
[1755849445604,0.61126322,113210.0,113200.0,0.38567]
[1755849446113,0.59192488,113210.0,113200.0,0.38567]
[1755849446301,0.61125981,113210.0,113200.0,0.38567]
[1755849446507,0.61125981,113210.0,113200.0,0.03447]
[1755849446807,0.61125981,113210.0,113190.0,0.4676]
[1755849446999,1.41175488,113200.0,113190.0,0.48404]
[1755849447198,1.41175488,113200.0,113190.0,0.50886]
[1755849447405,1.41175488,113200.0,113190.0,0.48404]
[1755849447610,1.41175488,113200.0,113190.0,0.50886]
[1755849447814,1.43108655,113200.0,113190.0,0.50886]
[1755849448115,1.41175488,113200.0,113190.0,0.50886]
[1755849448611,1.41175488,113200.0,113190.0,0.50986]
[1755849448915,0.87087,113200.0,113190.0,0.50986]
[1755849449114,1.42760488,113200.0,113190.0,0.50986]
[1755849449508,1.42760488,113200.0,113190.0,0.51086]
[1755849450006,1.12087,113200.0,113190.0,0.51086]
[1755849450206,1.67960488,113200.0,113190.0,0.50886]
[1755849450622,1.69892287,113200.0,113190.0,0.50886]
[1755849450909,2.33809031,113200.0,113190.0,0.09903]
[1755849451110,2.33809031,113200.0,113190.0,0.04969]
[1755849452815,2.33809031,113200.0,113190.0,0.02482]
[1755849455924,2.33809031,113200.0,113190.0,0.04969]
[1755849459109,1.50298799,113200.0,113190.0,0.07299]
[1755849459418,2.33809031,113200.0,113190.0,0.07299]
[1755849462821,2.33809031,113200.0,113190.0,0.08259]
[1755849464422,2.15501188,113200.0,113190.0,0.08259]
[1755849466017,2.15501188,113200.0,113190.0,0.02482]
[1755849467825,2.43337932,113200.0,113180.0,0.02487]
[1755849468031,1.23107232,113190.0,113180.0,0.02487]
[1755849468330,1.04172513,113190.0,113170.0,0.10197885]
[1755849468625,1.40911488,113180.0,113170.0,0.14245885]
[1755849469919,1.40911488,113180.0,113170.0,0.14345885]
[1755849471630,1.40911488,113180.0,113170.0,0.14445885]
[1755849472633,1.42494488,113180.0,113170.0,0.14445885]
[1755849473725,1.49537425,113180.0,113170.0,0.14445885]
[1755849473931,1.49537425,113180.0,113170.0,0.50525885]
[1755849474732,0.66233425,113180.0,113170.0,0.50525885]
[1755849474928,1.49401425,113180.0,113170.0,0.50525885]
[1755849476133,1.51335802,113180.0,113170.0,0.50525885]
[1755849476934,0.95662314,113180.0,113170.0,0.50525885]
[1755849477238,1.51335802,113180.0,113170.0,0.50525885]
[1755849479033,1.51311802,113180.0,113170.0,0.50525885]
[1755849479736,0.68167802,113180.0,113170.0,0.50525885]
[1755849480033,1.49365802,113180.0,113170.0,0.50525885]
[1755849480624,1.51299802,113180.0,113170.0,0.50525885]
[1755849481134,1.51299802,113180.0,113170.0,0.47114885]
[1755849481434,1.51299802,113180.0,113170.0,0.50546885]
[1755849483535,0.95626314,113180.0,113170.0,0.50546885]
[1755849483733,1.51299802,113180.0,113170.0,0.50546885]
[1755849486745,0.95626314,113180.0,113170.0,0.50546885]
[1755849487043,0.10560314,113180.0,113170.0,0.50546885]
[1755849487244,1.49585802,113180.0,113170.0,0.50546885]
[1755849487430,0.93912314,113180.0,113170.0,0.50546885]
[1755849487637,1.51519802,113180.0,113170.0,0.50546885]
[1755849488338,0.95846314,113180.0,113170.0,0.50546885]
[1755849488642,1.51519802,113180.0,113170.0,0.50546885]
[1755849490837,0.95846314,113180.0,113170.0,0.50546885]
[1755849491035,1.51519802,113180.0,113170.0,0.50546885]
[1755849491637,1.51439802,113180.0,113170.0,0.50546885]
[1755849491941,0.66233802,113180.0,113170.0,0.50546885]
[1755849492134,1.49489802,113180.0,113170.0,0.50546885]
[1755849492536,1.51423802,113180.0,113170.0,0.50546885]
[1755849492729,1.23587058,113180.0,113170.0,0.50546885]
[1755849492934,1.51423802,113180.0,113170.0,0.50546885]
[1755849495846,0.95750314,113180.0,113170.0,0.50546885]
[1755849496145,1.51423802,113180.0,113170.0,0.50546885]
[1755849501149,0.68167802,113180.0,113170.0,0.50546885]
[1755849501446,1.51383802,113180.0,113170.0,0.50546885]
[1755849505754,0.95710314,113180.0,113170.0,0.50546885]
[1755849505949,1.51383802,113180.0,113170.0,0.50546885]
[1755849506846,0.68167802,113180.0,113170.0,0.50546885]
[1755849507049,1.51307802,113180.0,113170.0,0.50546885]
[1755849507443,0.95634314,113180.0,113170.0,0.50546885]
[1755849507643,1.51307802,113180.0,113170.0,0.50546885]
[1755849507845,1.51287802,113180.0,113170.0,0.50546885]
[1755849513450,0.68167802,113180.0,113170.0,0.50546885]
[1755849513655,1.51107802,113180.0,113170.0,0.50546885]
[1755849514753,0.68167802,113180.0,113170.0,0.50546885]
[1755849514950,0.68167802,113180.0,113170.0,0.47114885]
[1755849515255,1.51108544,113180.0,113170.0,0.78307629]
[1755849515755,1.51108544,113180.0,113170.0,0.50470885]
[1755849517548,0.95435056,113180.0,113170.0,0.50470885]
[1755849517747,1.51108544,113180.0,113170.0,0.50470885]
[1755849519658,1.51040544,113180.0,113170.0,0.50470885]
[1755849521859,0.95367056,113180.0,113170.0,0.50470885]
[1755849522156,1.51040544,113180.0,113170.0,0.78307629]
[1755849522458,1.51040544,113180.0,113170.0,0.50470885]
[1755849530769,1.50968544,113180.0,113170.0,0.50470885]
[1755849530977,1.43925607,113180.0,113170.0,0.50470885]
[1755849533375,0.88252119,113180.0,113170.0,0.50470885]
[1755849533580,1.43925607,113180.0,113170.0,0.50470885]
[1755849533781,1.43925485,113180.0,113170.0,0.50470885]
[1755849539677,0.88251997,113180.0,113170.0,0.50470885]
[1755849539877,1.43925485,113180.0,113170.0,0.50470885]
[1755849540384,0.88251997,113180.0,113170.0,0.50470885]
[1755849540585,1.43925485,113180.0,113170.0,0.50470885]
[1755849541981,0.61129037,113180.0,113170.0,0.50470885]
[1755849545690,0.05455549,113180.0,113170.0,0.50470885]
[1755849545894,0.61129037,113180.0,113170.0,0.50470885]
[1755849546290,0.05455549,113180.0,113170.0,0.50470885]
[1755849546491,0.61129037,113180.0,113170.0,0.50470885]
[1755849547291,0.05455549,113180.0,113170.0,0.50470885]
[1755849547491,0.61129037,113180.0,113170.0,0.50470885]
[1755849547691,0.61129037,113180.0,113170.0,0.78307629]
[1755849549186,0.61129037,113180.0,113170.0,0.50470885]
[1755849550888,0.61129037,113180.0,113170.0,0.78307629]
[1755849551889,0.05455549,113180.0,113170.0,0.50470885]
[1755849552195,0.61129037,113180.0,113170.0,0.50470885]
[1755849553497,0.05455549,113180.0,113170.0,0.50470885]
[1755849553798,0.61129037,113180.0,113170.0,0.50470885]
[1755849558205,0.05455549,113180.0,113170.0,0.50470885]
[1755849558387,0.61129037,113180.0,113170.0,0.50470885]
[1755849559401,0.61129037,113180.0,113170.0,0.50370885]
[1755849559699,0.05455549,113180.0,113170.0,0.50370885]
[1755849559894,0.61129037,113180.0,113170.0,0.50370885]
[1755849560098,0.61129037,113180.0,113170.0,0.50270885]
[1755849562603,0.05455549,113180.0,113170.0,0.50270885]
[1755849562804,0.61129037,113180.0,113170.0,0.50270885]
[1755849573914,0.05455549,113180.0,113170.0,0.78107629]
[1755849574105,0.61129037,113180.0,113170.0,0.50270885]
[1755849574411,0.05455549,113180.0,113170.0,0.50270885]
[1755849574911,0.61129037,113180.0,113170.0,0.50270885]
[1755849577813,0.05455549,113180.0,113170.0,0.50270885]
[1755849578016,0.61129037,113180.0,113170.0,0.50270885]
[1755849579518,0.61129037,113180.0,113170.0,0.48274]
[1755849586622,0.05455549,113180.0,113170.0,0.48274]
[1755849587019,0.61129037,113180.0,113170.0,0.48274]
[1755849587517,0.33292293,113180.0,113170.0,0.48274]
[1755849587824,0.61129037,113180.0,113170.0,0.48274]
[1755849589921,0.05455549,113180.0,113170.0,0.48274]
[1755849590214,0.61129037,113180.0,113170.0,0.76110744]
[1755849590423,0.61129037,113180.0,113170.0,0.48274]
[1755849591924,0.05455549,113180.0,113170.0,0.4782]
[1755849592222,0.61129037,113180.0,113170.0,0.4782]
[1755849592525,0.61129037,113180.0,113170.0,0.4732]
[1755849592723,0.61511037,113180.0,113170.0,0.4732]
[1755849593223,0.61511037,113180.0,113170.0,0.4682]
[1755849594922,0.61511037,113180.0,113170.0,0.43464]
[1755849595123,0.59572488,113180.0,113170.0,0.46735]
[1755849595326,0.61513677,113180.0,113170.0,0.10655]
[1755849595521,0.61513677,113180.0,113170.0,0.04733]
[1755849596122,0.61513677,113180.0,113170.0,0.05666]
[1755849596523,0.61513677,113180.0,113170.0,0.04733]
[1755849596723,0.61513677,113180.0,113170.0,0.02403]
[1755849597523,0.61513677,113180.0,113170.0,0.04504]
[1755849597724,0.61513677,113180.0,113160.0,0.47174113]
[1755849597925,0.32955744,113170.0,113160.0,0.54258113]
[1755849600130,0.05119,113170.0,113160.0,0.48102]
[1755849600335,0.03185,113170.0,113160.0,0.48102]
[1755849601321,0.03185,113170.0,113160.0,0.5446814]
[1755849602526,0.03185,113170.0,113160.0,0.48102]
[1755849603824,0.03185,113170.0,113160.0,0.59242815]
[1755849604226,0.03185,113170.0,113160.0,0.48102]
[1755849606031,0.02538,113170.0,113160.0,0.48102]
[1755849606332,0.01616,113180.0,113170.0,0.11822]
[1755849606633,0.01616,113180.0,113170.0,0.19778595]
[1755849606823,0.03185,113180.0,113170.0,0.19778595]
[1755849608330,0.03738,113180.0,113170.0,0.18098595]
[1755849609232,0.03738,113180.0,113170.0,0.46222]
[1755849609233,0.00969,113180.0,113170.0,0.46222]
[1755849609734,0.72132315,113190.0,113180.0,0.07084]
[1755849609932,0.72132315,113190.0,113180.0,0.13448873]
[1755849610234,0.97132315,113190.0,113180.0,0.18186873]
[1755849610827,1.33312315,113190.0,113180.0,0.18186873]
[1755849611033,1.33412315,113190.0,113180.0,0.18186873]
[1755849613430,1.33412315,113190.0,113180.0,0.14915873]
[1755849613637,1.35366622,113190.0,113180.0,0.11822]
[1755849613836,1.63219465,113190.0,113180.0,0.11822]
[1755849614036,1.35366622,113190.0,113180.0,0.11822]
[1755849614237,1.63219465,113190.0,113180.0,0.39674843]
[1755849614437,1.63219465,113190.0,113180.0,0.11822]
[1755849614637,1.35366622,113190.0,113180.0,0.11822]
[1755849614838,1.63219465,113190.0,113180.0,0.11822]
[1755849615336,1.35366622,113190.0,113180.0,0.39674843]
[1755849615532,1.63219465,113190.0,113180.0,0.11822]
[1755849615729,1.63219465,113190.0,113180.0,0.39674843]
[1755849616431,0.9758015,113190.0,113180.0,0.39674843]
[1755849616631,1.8010015,113190.0,113180.0,0.39674843]
[1755849617037,1.4402015,113190.0,113180.0,0.11822]
[1755849617252,1.8010015,113190.0,113180.0,0.11822]
[1755849624349,1.4402015,113190.0,113180.0,0.11822]
[1755849625849,1.4402015,113190.0,113180.0,0.39674843]
[1755849626047,0.6150015,113190.0,113180.0,0.39674843]
[1755849626241,1.4400415,113190.0,113180.0,0.39674843]
[1755849626442,1.16151307,113190.0,113180.0,0.39674843]
[1755849626852,1.4400415,113190.0,113180.0,0.39674843]
[1755849627056,1.4400415,113190.0,113180.0,0.11822]
[1755849627250,1.4400415,113190.0,113180.0,0.39674843]
[1755849628751,1.4400415,113190.0,113180.0,0.11822]
[1755849629155,1.4400415,113190.0,113180.0,0.39674843]
[1755849629559,1.4400415,113190.0,113180.0,0.11822]
[1755849629961,1.4400415,113190.0,113180.0,0.39674843]
[1755849630257,1.16151307,113190.0,113180.0,0.39674843]
[1755849630558,1.4400415,113190.0,113180.0,0.39674843]
[1755849631958,1.46313073,113190.0,113180.0,0.39674843]
[1755849632555,1.53380834,113190.0,113180.0,0.39674843]
[1755849633759,1.25527991,113190.0,113180.0,0.39674843]
[1755849633960,1.53380834,113190.0,113180.0,0.39674843]
[1755849634761,1.25527991,113190.0,113180.0,0.39674843]
[1755849634964,1.53380834,113190.0,113180.0,0.39674843]
[1755849635862,1.53380834,113190.0,113180.0,0.48511953]
[1755849636258,1.53380834,113190.0,113180.0,0.39674843]
[1755849637363,1.53380834,113190.0,113180.0,0.48394953]
[1755849637364,1.46297073,113190.0,113180.0,0.48394953]
[1755849639465,1.46297073,113190.0,113180.0,0.39557843]
[1755849639656,1.46297073,113190.0,113180.0,0.48394953]
[1755849640064,0.63809073,113190.0,113180.0,0.48394953]
[1755849640265,1.46289073,113190.0,113180.0,0.48394953]
[1755849641266,0.31500307,113190.0,113180.0,0.76247796]
[1755849641563,1.12512307,113190.0,113180.0,0.76247796]
[1755849642366,1.12725307,113190.0,113180.0,0.76247796]
[1755849642564,1.13870307,113190.0,113180.0,0.76247796]
[1755849643764,0.31390307,113190.0,113180.0,0.76247796]
[1755849643967,1.13866307,113190.0,113180.0,0.76247796]
[1755849644365,0.31390307,113190.0,113180.0,0.76247796]
[1755849644566,1.13862307,113190.0,113180.0,0.76247796]
[1755849644764,1.15796307,113190.0,113180.0,0.76247796]
[1755849645263,1.4364915,113190.0,113180.0,0.76247796]
[1755849645467,1.4364915,113190.0,113180.0,0.39557843]
[1755849646057,1.4364915,113190.0,113180.0,0.11705]
[1755849646260,1.15792307,113190.0,113180.0,0.2054211]
[1755849646669,1.15792307,113190.0,113180.0,0.02396]
[1755849646969,1.7643315,113190.0,113170.0,0.34882843]
[1755849647171,0.33940843,113180.0,113170.0,0.48566733]
[1755849647373,0.3589515,113180.0,113170.0,0.39728843]
[1755849648070,0.3589515,113180.0,113170.0,0.48566733]
[1755849648464,0.33940843,113180.0,113170.0,0.36574843]
[1755849648668,0.33940843,113180.0,113170.0,0.12159]
[1755849648969,0.35921646,113180.0,113170.0,0.40011843]
[1755849650571,0.35921646,113180.0,113170.0,0.12159]
[1755849650871,0.35921646,113180.0,113170.0,0.40011843]
[1755849651068,0.33940843,113180.0,113170.0,0.40011843]
[1755849652272,0.33940843,113180.0,113170.0,0.12159]
[1755849652471,0.33940843,113180.0,113170.0,0.40011843]
[1755849653265,0.33940843,113180.0,113170.0,0.12159]
[1755849653572,0.33940843,113180.0,113170.0,0.40011843]
[1755849655968,0.06088,113180.0,113170.0,0.12159]
[1755849656175,0.99851272,113180.0,113170.0,0.40011843]
[1755849656369,0.99851272,113180.0,113170.0,0.08722]
[1755849656670,0.04537,113170.0,113160.0,0.46323716]
[1755849656874,1.16400843,113170.0,113160.0,0.39958843]
[1755849657471,1.16400843,113170.0,113160.0,0.08669]
[1755849657672,1.16400843,113170.0,113150.0,0.200381]
[1755849657673,0.06088,113160.0,113150.0,0.200381]
[1755849657877,0.63771254,113160.0,113150.0,0.08043227]
[1755849658765,0.63671254,113160.0,113150.0,0.08043227]
[1755849659473,0.63571254,113160.0,113150.0,0.08043227]
[1755849660271,0.99651254,113160.0,113150.0,0.08043227]
[1755849660571,1.24769708,113160.0,113150.0,0.06885227]
[1755849660771,1.21677708,113160.0,113130.0,0.38457898]
[1755849660966,0.3135707,113140.0,113130.0,0.48123496]
[1755849661774,0.3135707,113140.0,113130.0,0.46740898]
[1755849662271,0.3135707,113140.0,113130.0,0.46940898]
[1755849662468,0.85945,113140.0,113130.0,0.47140898]
[1755849662674,1.1381707,113140.0,113130.0,0.47140898]
[1755849663173,1.15854459,113140.0,113130.0,0.47140898]
[1755849663370,0.87982389,113140.0,113130.0,0.47140898]
[1755849663574,1.15854459,113140.0,113130.0,0.46940898]
[1755849663868,1.15854459,113140.0,113130.0,0.47040898]
[1755849664877,1.15854459,113140.0,113130.0,0.46940898]
[1755849668374,1.15858459,113140.0,113130.0,0.46940898]
[1755849670770,0.87986389,113140.0,113130.0,0.46940898]
[1755849671081,0.87982389,113140.0,113130.0,0.46940898]
[1755849671674,0.8457278,113150.0,113140.0,0.12106]
[1755849671873,0.8612378,113150.0,113140.0,0.3997807]
[1755849672372,0.8612378,113150.0,113140.0,0.7605807]
[1755849672678,0.8612378,113150.0,113140.0,0.8489831]
[1755849672875,0.8612378,113150.0,113140.0,0.5702624]
[1755849673179,0.8612378,113150.0,113140.0,0.8489831]
[1755849673479,0.8612378,113150.0,113140.0,0.7605807]
[1755849673680,0.0366378,113150.0,113140.0,0.48186]
[1755849673882,0.8612378,113150.0,113140.0,0.848983]
[1755849674280,0.8805778,113150.0,113140.0,0.5702623]
[1755849674782,0.8612378,113150.0,113140.0,0.5702623]
[1755849675280,0.8612378,113150.0,113140.0,0.848983]
[1755849676884,0.84003,113150.0,113140.0,0.848983]
[1755849677770,0.86088356,113150.0,113140.0,0.848983]
[1755849681188,0.01551,113150.0,113140.0,0.848983]
[1755849681384,0.83995,113150.0,113140.0,0.848983]
[1755849681885,0.01551,113150.0,113140.0,0.848983]
[1755849682089,0.3608,113160.0,113150.0,0.2070545]
[1755849682284,1.2048764,113160.0,113150.0,0.4857752]
[1755849683080,1.4548764,113160.0,113150.0,0.2070545]
[1755849683375,0.6466164,113160.0,113150.0,0.4857752]
[1755849683576,1.4710164,113160.0,113150.0,0.4857752]
[1755849683784,1.4372,113160.0,113150.0,0.4857752]
[1755849683982,1.0764,113160.0,113150.0,0.8465752]
[1755849684384,1.0774,113160.0,113150.0,0.8465752]
[1755849684684,1.09358,113160.0,113150.0,0.8465752]
[1755849685488,1.11292,113160.0,113150.0,0.47946]
[1755849685787,1.11292,113160.0,113150.0,0.44613]
[1755849686190,1.11292,113160.0,113150.0,0.47946]
[1755849686486,1.3916407,113160.0,113150.0,0.47946]
[1755849686687,1.11292,113160.0,113150.0,0.5678545]
[1755849687184,1.13255832,113160.0,113150.0,0.47946]
[1755849687386,1.13255832,113160.0,113150.0,0.5678545]
[1755849688291,1.13255832,113160.0,113150.0,0.47946]
[1755849688683,1.13255832,113160.0,113150.0,0.5678545]
[1755849689685,1.11313832,113160.0,113150.0,0.8465752]
[1755849690392,1.09346,113160.0,113150.0,0.8465752]
[1755849690992,1.1128,113160.0,113150.0,0.8465752]
[1755849691283,1.1128,113160.0,113150.0,0.7581807]
[1755849691490,1.1128,113160.0,113150.0,0.5678545]
[1755849692291,1.1128,113160.0,113150.0,0.47946]
[1755849692487,1.1128,113160.0,113150.0,0.5678545]
[1755849693290,1.09346,113160.0,113150.0,0.8465752]
[1755849693794,0.26918,113160.0,113150.0,0.8465752]
[1755849693995,1.09338,113160.0,113150.0,0.8465752]
[1755849698096,1.09338,113160.0,113150.0,0.5678545]
[1755849698395,1.07712,113160.0,113150.0,0.8465752]
[1755849701295,1.09646,113160.0,113150.0,3.8465752]
[1755849706508,1.07712,113160.0,113150.0,3.8465752]
[1755849706708,0.89709056,113160.0,113150.0,3.8465752]
[1755849707209,0.91232056,113160.0,113150.0,3.8465752]
[1755849708308,0.91132056,113160.0,113150.0,3.8465752]
[1755849708509,0.84135,113160.0,113150.0,3.8465752]
[1755849709309,0.83935,113160.0,113150.0,3.8465752]
[1755849710106,0.01523,113160.0,113150.0,3.8465752]
[1755849710313,0.83915,113160.0,113150.0,3.8465752]
[1755849710811,0.83915,113160.0,113150.0,3.5678545]
[1755849711202,0.83915,113160.0,113150.0,3.8465752]
[1755849711407,0.85849,113160.0,113150.0,3.8465752]
[1755849711603,0.85849,113160.0,113150.0,3.47946]
[1755849711805,0.85849,113160.0,113150.0,3.47844]
[1755849712110,0.85849,113160.0,113150.0,3.5668345]
[1755849712311,0.85849,113160.0,113150.0,3.47844]
[1755849713905,0.85849,113160.0,113150.0,3.5668345]
[1755849714415,0.85849,113160.0,113150.0,3.47844]
[1755849715316,0.85849,113160.0,113150.0,3.5668345]
[1755849715613,0.85849,113160.0,113150.0,3.7571607]
[1755849715814,0.85849,113160.0,113150.0,3.8455552]
[1755849716008,0.83915,113160.0,113150.0,3.8455552]
[1755849716816,0.01523,113160.0,113150.0,3.8455552]
[1755849717019,0.82384,113160.0,113150.0,3.8455552]
[1755849718020,0.85927622,113170.0,113160.0,0.11887]
[1755849718221,0.87889944,113170.0,113160.0,0.11887]
[1755849718715,1.17696014,113170.0,113160.0,0.11887]
[1755849719105,1.42696014,113170.0,113160.0,0.11887]
[1755849720119,1.15119944,113170.0,113160.0,0.11887]
[1755849720419,1.15119944,113170.0,113160.0,0.3975907]
[1755849721210,1.15119944,113170.0,113160.0,0.11887]
[1755849721716,1.42992014,113170.0,113160.0,0.11887]
[1755849725224,0.60616014,113170.0,113160.0,0.11887]
[1755849725418,1.42984014,113170.0,113160.0,0.11887]
[1755849726525,1.15111944,113170.0,113160.0,0.11887]
[1755849726925,0.32743944,113170.0,113160.0,0.11887]
[1755849727127,1.15111944,113170.0,113160.0,0.11887]
[1755849727426,1.15111944,113170.0,113160.0,0.2072567]
[1755849727611,1.15111944,113170.0,113160.0,0.11887]
[1755849729012,1.15111944,113170.0,113160.0,0.4859774]
[1755849729013,0.28785322,113170.0,113160.0,0.4859774]
[1755849729517,1.11149322,113170.0,113160.0,0.4859774]
[1755849729819,1.11149322,113170.0,113160.0,0.2072567]
[1755849730320,1.11149322,113170.0,113160.0,0.4859774]
[1755849735227,0.28785322,113170.0,113160.0,0.4859774]
[1755849735432,1.11141322,113170.0,113160.0,0.8467774]
[1755849735633,1.09179,113170.0,113160.0,0.8467774]
[1755849737841,1.09179,113170.0,113160.0,0.86498438]
[1755849738041,1.09175,113170.0,113160.0,0.86498438]
[1755849740337,0.26823,113170.0,113160.0,0.86498438]
[1755849740538,1.07644,113170.0,113160.0,1.14370508]
[1755849741635,1.07644,113170.0,113160.0,0.86498438]
[1755849742340,1.07644,113170.0,113160.0,1.14370508]
[1755849742535,0.253,113170.0,113160.0,1.14370508]
[1755849746440,0.253,113170.0,113160.0,1.14329924]
[1755849754938,0.253,113170.0,113160.0,1.42181702]
[1755849755142,0.253,113170.0,113160.0,1.14329924]
[1755849755445,0.253,113170.0,113160.0,1.42181702]
[1755849755647,0.253,113170.0,113160.0,1.48546575]
[1755849756646,0.252,113170.0,113160.0,1.48546575]
[1755849756835,0.252,113170.0,113160.0,2.30858575]
[1755849756836,0.002,113170.0,113160.0,2.30858575]
[1755849757147,0.00013242,113180.0,113160.0,2.57373385]
[1755849757342,0.01612242,113180.0,113170.0,1.12808446]
[1755849757946,0.26612242,113180.0,113170.0,0.5710489]
[1755849758247,0.26612242,113180.0,113170.0,1.12808446]
[1755849759648,0.26712242,113180.0,113170.0,1.12808446]
[1755849760248,0.26812242,113180.0,113170.0,1.12808446]
[1755849785176,0.26812242,113180.0,113170.0,1.19173319]
[1755849788972,0.25213242,113180.0,113170.0,1.19173319]
[1755849790673,0.25213242,113180.0,113170.0,1.12808446]
[1755849790873,0.20213242,113180.0,113170.0,1.19173319]
[1755849793771,0.002,113180.0,113170.0,1.19173319]
[1755849794182,0.002,113180.0,113170.0,0.63469763]
[1755849794381,0.002,113180.0,113170.0,1.19173319]
[1755849794777,0.001,113180.0,113170.0,1.19173319]
[1755849795079,0.09368,113190.0,113180.0,0.1596011]
[1755849795284,0.11314512,113190.0,113180.0,1.94845666]
[1755849796485,0.36314512,113190.0,113180.0,1.94845666]
[1755849796781,0.36414512,113190.0,113180.0,2.01773391]
[1755849796987,0.36514512,113190.0,113180.0,2.01773391]
[1755849797279,0.36514512,113190.0,113180.0,1.94845666]
[1755849801086,0.33198512,113190.0,113180.0,1.94845666]
[1755849801286,0.31775512,113190.0,113180.0,1.94845666]
[1755849801583,0.34974512,113190.0,113180.0,1.94845666]
[1755849801786,0.36449512,113190.0,113180.0,1.94845666]
[1755849801986,0.36449512,113190.0,113180.0,2.01803067]
[1755849802390,0.31775512,113190.0,113180.0,2.01803067]
[1755849803787,0.34974512,113190.0,113180.0,2.01803067]
[1755849804682,0.34974512,113190.0,113180.0,1.46099511]
[1755849804989,0.34974512,113190.0,113180.0,2.01803067]
[1755849806692,0.30159512,113190.0,113180.0,2.01803067]
[1755849807789,0.30159512,113190.0,113180.0,1.46099511]
[1755849808088,0.30159512,113190.0,113180.0,2.01803067]
[1755849808787,0.30159512,113190.0,113180.0,1.46099511]
[1755849808788,0.33358512,113190.0,113180.0,1.46099511]
[1755849808988,0.33358512,113190.0,113180.0,2.01803067]
[1755849809786,0.34833512,113190.0,113180.0,2.01803067]
[1755849810893,0.30159512,113190.0,113180.0,2.01803067]
[1755849811093,0.27146512,113190.0,113180.0,2.01803067]
[1755849813496,0.29334512,113190.0,113180.0,2.01803067]
[1755849813702,0.33511512,113190.0,113180.0,2.01803067]
[1755849813995,0.34986512,113190.0,113180.0,1.92965957]
[1755849814391,0.34986512,113190.0,113180.0,1.37262401]
[1755849814695,0.34986512,113190.0,113180.0,1.92965957]
[1755849815096,0.34986512,113190.0,113180.0,2.01803067]
[1755849815297,0.33317512,113190.0,113180.0,1.10637957]
[1755849815493,0.36516512,113190.0,113180.0,1.10637957]
[1755849815799,0.36516512,113190.0,113180.0,1.19475067]
[1755849816401,0.36516512,113190.0,113180.0,1.10637957]
[1755849816696,0.36516512,113190.0,113180.0,1.19475067]
[1755849816897,0.36516512,113190.0,113180.0,1.10637957]
[1755849819101,0.38450512,113190.0,113180.0,1.10637957]
[1755849819697,0.36516512,113190.0,113180.0,1.10637957]
[1755849820290,1.4674429,113190.0,113180.0,0.46706179]
[1755849820495,1.4867829,113190.0,113180.0,0.39748778]
[1755849821192,1.4867829,113190.0,113180.0,0.67600556]
[1755849821392,1.4867829,113190.0,113180.0,0.39748778]
[1755849821599,1.4867829,113190.0,113180.0,0.67600556]
[1755849821600,1.20826512,113190.0,113180.0,0.67600556]
[1755849822098,1.20826512,113190.0,113180.0,0.39748778]
[1755849824496,1.20826512,113190.0,113180.0,0.11897]
[1755849824894,1.20826512,113190.0,113180.0,0.39748778]
[1755849825099,1.18892512,113190.0,113180.0,0.67600556]
[1755849825809,1.18892512,113190.0,113180.0,0.11897]
[1755849826106,1.18892512,113190.0,113180.0,0.39748778]
[1755849827201,1.18892512,113190.0,113180.0,0.11897]
[1755849827403,1.18892512,113190.0,113180.0,0.39748778]
[1755849828701,1.20826512,113190.0,113180.0,0.39748778]
[1755849832310,1.20826512,113190.0,113180.0,0.11897]
[1755849832602,1.20826512,113190.0,113180.0,0.39748778]
[1755849836012,1.4867829,113190.0,113180.0,0.39748778]
[1755849837313,1.4867829,113190.0,113180.0,0.67600556]
[1755849837718,1.4867829,113190.0,113180.0,0.39748778]
[1755849837913,1.20826512,113190.0,113180.0,0.39748778]
[1755849838415,1.20826512,113190.0,113180.0,0.67600556]
[1755849839410,1.1888,113190.0,113180.0,0.67600556]
[1755849839614,1.20816444,113190.0,113180.0,0.67600556]
[1755849840417,1.48668222,113190.0,113180.0,0.67600556]
[1755849841316,1.20816444,113190.0,113180.0,0.67600556]
[1755849844316,1.20816444,113190.0,113180.0,1.03680556]
[1755849844717,1.20816444,113190.0,113180.0,0.67600556]
[1755849844917,1.20816444,113190.0,113180.0,1.03680556]
[1755849847417,1.18882444,113190.0,113180.0,1.03680556]
[1755849847921,1.20816444,113190.0,113180.0,1.03680556]
[1755849848220,1.20688444,113190.0,113180.0,0.75828778]
[1755849849118,1.20684444,113190.0,113180.0,0.75828778]
[1755849850612,1.20684444,113190.0,113180.0,1.03680556]
[1755849852818,1.18750444,113190.0,113180.0,1.03680556]
[1755849853925,0.36506444,113190.0,113180.0,1.12517666]
[1755849854223,0.27136444,113190.0,113180.0,2.22689444]
[1755849854423,0.252,113190.0,113180.0,1.94837666]
[1755849854826,0.252,113190.0,113180.0,2.01202539]
[1755849855023,0.27361,113190.0,113180.0,2.01202539]
[1755849855218,0.27361,113190.0,113180.0,1.94837666]
[1755849855725,0.252,113190.0,113180.0,1.94837666]
[1755849857924,0.3056,113190.0,113180.0,1.45418983]
[1755849858130,0.3056,113190.0,113180.0,2.01122539]
[1755849858327,0.28349,113190.0,113180.0,1.94757666]
[1755849858526,0.31548,113190.0,113180.0,1.94757666]
[1755849859733,0.31548,113190.0,113180.0,2.01915122]
[1755849860225,0.28349,113190.0,113180.0,2.01915122]
[1755849860431,0.31849,113190.0,113180.0,2.01915122]
[1755849860930,0.31849,113190.0,113180.0,2.297669]
[1755849861433,0.31849,113190.0,113180.0,2.01915122]
[1755849861630,0.35048,113190.0,113180.0,2.01915122]
[1755849862123,0.37992,113190.0,113180.0,2.01915122]
[1755849863032,0.37992,113190.0,113180.0,1.10838012]
[1755849863231,0.37992,113190.0,113180.0,1.93066012]
[1755849863433,0.37992,113190.0,113180.0,2.01903122]